bitfinex/quotes_ETHUSD_20260304
["timestamp","ask_amount","ask_price","bid_price","bid_amount"]
[1772642827455,2.05059136,2147.8,2147.2,1.165307]
[1772642828356,1.16577046,2148.2,2147.2,1.164307]
[1772642828647,2.05059136,2148.1,2147.2,1.164307]
[1772642829726,3.21441868,2148.1,2147.0,4.65865843]
[1772642829942,3.21441868,2148.1,2147.3,1.143]
[1772642830323,3.21441234,2148.1,2147.3,1.143]
[1772642830833,2.05059136,2148.0,2147.4,1.144]
[1772642831038,2.05059136,2148.0,2147.4,1.143]
[1772642831556,2.05059136,2148.0,2147.5,1.144]
[1772642831776,2.05059136,2147.9,2147.5,2.30713919]
[1772642833280,3.21635961,2148.2,2147.5,2.30813919]
[1772642833459,3.21635742,2148.2,2147.5,2.30813919]
[1772642833660,2.05259136,2148.2,2147.5,2.30813919]
[1772642834759,2.05059136,2148.1,2147.5,2.30813919]
[1772642836383,3.21442578,2148.1,2147.5,2.30813919]
[1772642836552,2.05059136,2148.1,2147.6,1.144]
[1772642837387,0.002,2147.7,2147.6,1.144]
[1772642837758,0.002,2147.7,2147.6,2.30809014]
[1772642838457,0.002,2148.2,2147.7,0.001]
[1772642839675,0.002,2148.2,2147.6,2.30809014]
[1772642839875,0.002,2148.2,2147.7,0.001]
[1772642841790,0.002,2148.6,2147.9,0.7326256]
[1772642842298,0.002,2149.2,2148.2,0.72975469]
[1772642842465,0.002,2149.2,2148.4,0.72975469]
[1772642842658,2.05544629,2149.5,2148.4,0.72975469]
[1772642842866,0.002,2149.5,2148.6,0.72975469]
[1772642843867,0.002,2149.5,2148.7,1.1644942]
[1772642844079,0.002,2149.5,2148.8,1.147]
[1772642844981,0.002,2149.5,2148.9,1.148]
[1772642845373,1.97919421,2149.5,2148.9,1.148]
[1772642845774,0.002,2149.5,2148.9,1.148]
[1772642845989,0.002,2149.5,2149.0,1.16333178]
[1772642846564,1.97919421,2149.8,2149.1,0.001]
[1772642846777,1.97919421,2149.8,2148.9,1.16338266]
[1772642846778,1.97719421,2149.5,2148.9,1.16338266]
[1772642846981,1.97719421,2149.5,2148.9,1.147]
[1772642847220,1.97719421,2149.5,2148.3,1.16371084]
[1772642847510,1.97719421,2149.5,2148.4,1.147]
[1772642847979,1.97719421,2149.3,2148.5,1.16460251]
[1772642849310,1.97719421,2149.3,2148.2,1.16373755]
[1772642849516,1.97719421,2149.3,2148.1,1.148]
[1772642849729,1.97719421,2149.3,2148.1,0.001]
[1772642850012,1.97719421,2148.9,2148.0,1.148]
[1772642850212,1.97719421,2148.9,2148.0,2.3118706]
[1772642850715,1.97719421,2148.9,2147.9,1.148]
[1772642851482,1.97719421,2148.9,2147.8,0.35344924]
[1772642851683,1.97719421,2148.9,2147.8,1.16397321]
[1772642851985,1.97719421,2148.7,2147.8,1.16397321]
[1772642852593,1.97719421,2149.3,2147.9,0.70383482]
[1772642852808,1.97719421,2149.3,2147.9,1.05944273]
[1772642853007,0.002,2148.7,2147.9,0.70383482]
[1772642853210,1.97719421,2149.0,2147.9,0.001]
[1772642853388,1.97719421,2149.0,2148.0,1.149]
[1772642853595,1.97719421,2148.8,2148.0,1.149]
[1772642854102,3.14064054,2148.8,2148.1,1.16381918]
[1772642854304,1.97719421,2148.7,2148.1,1.16381918]
[1772642854708,0.002,2149.2,2148.1,1.16381918]
[1772642854907,0.002,2149.2,2148.1,1.85947372]
[1772642855113,1.97919421,2149.2,2148.1,1.85947372]
[1772642855311,1.97719421,2149.1,2148.1,1.16381918]
[1772642855502,1.97719421,2149.1,2148.2,1.149]
[1772642856104,1.97719421,2148.9,2148.3,1.16371084]
[1772642856505,1.97719421,2148.9,2148.2,2.31272196]
[1772642858714,1.97719421,2149.6,2148.3,3.10336548]
[1772642858914,1.97719421,2149.6,2148.4,0.68523549]
[1772642859113,1.97719421,2149.5,2148.3,2.41812999]
[1772642859314,1.97719421,2149.5,2148.2,1.16372196]
[1772642859521,1.97719421,2149.5,2148.3,1.149]
[1772642860431,1.97719421,2149.3,2148.4,1.16365667]
[1772642861523,1.97719421,2149.3,2148.5,1.15]
[1772642861723,1.97719421,2149.3,2147.7,4.16416035]
[1772642861911,1.97719421,2148.9,2147.9,0.26527952]
[1772642862243,1.16354835,2148.6,2147.6,0.001]
[1772642862426,1.97719421,2148.5,2147.6,0.001]
[1772642864219,1.97719421,2148.5,2147.7,1.15]
[1772642864433,1.97719421,2148.4,2147.8,1.16398174]
[1772642865021,1.97719421,2148.4,2147.8,2.31398174]
[1772642865334,1.97719421,2148.4,2147.7,1.16399384]
[1772642865918,4.65326218,2149.1,2147.7,1.16399384]
[1772642865919,2.20935664,2149.4,2147.7,1.16399384]
[1772642866233,1.97719421,2149.1,2147.7,1.16399384]
[1772642866435,1.97719421,2148.9,2147.8,1.15]
[1772642866610,1.97719421,2148.9,2148.1,0.001]
[1772642866930,1.97919421,2148.9,2148.1,0.001]
[1772642868442,1.92619367,2148.8,2148.1,0.001]
[1772642870658,1.92619367,2148.6,2148.1,0.001]
[1772642871072,1.92619367,2148.6,2147.9,0.001]
[1772642871943,1.92619367,2148.4,2147.9,0.001]
[1772642872154,2.3614942,2148.7,2147.9,0.001]
[1772642872155,1.92619367,2148.2,2147.9,0.001]
[1772642872547,1.16381918,2148.1,2147.9,0.001]
[1772642872867,1.92619367,2148.0,2147.9,0.001]
[1772642874768,3.09006704,2148.0,2147.9,0.001]
[1772642875351,1.92619367,2147.9,2147.6,0.001]
[1772642876979,3.0901239,2147.9,2147.6,0.001]
[1772642877482,1.92619367,2147.8,2147.6,0.001]
[1772642877677,1.92619367,2147.8,2147.4,0.001]
[1772642878986,1.92619367,2147.6,2147.4,0.001]
[1772642881392,1.92619367,2147.5,2147.4,0.001]
[1772642881953,1.16401815,2147.8,2147.4,0.001]
[1772642882211,1.92619367,2147.7,2147.4,0.001]
[1772642883289,3.09023489,2147.7,2147.4,0.001]
[1772642883492,1.92619367,2147.9,2147.4,0.001]
[1772642883794,3.09012784,2147.9,2147.4,0.001]
[1772642884782,1.92619367,2147.9,2147.4,0.001]
[1772642884987,3.09013933,2147.9,2147.4,0.001]
[1772642885175,1.92619367,2147.8,2147.3,0.001]
[1772642885890,1.92619367,2147.6,2147.3,0.001]
[1772642886191,1.92619367,2147.4,2146.8,1.16452103]
[1772642886761,1.92619367,2147.8,2146.8,1.16452103]
[1772642887055,1.203,2148.5,2146.8,0.44272099]
[1772642887285,1.92619367,2148.3,2146.8,0.44272099]
[1772642888585,3.08985034,2148.5,2146.8,0.44272099]
[1772642888760,1.92619367,2148.4,2146.8,0.44272099]
[1772642889157,3.08990451,2148.3,2146.9,1.58363197]
[1772642889364,1.92619367,2148.2,2146.9,1.58363197]
[1772642889562,1.92619367,2148.2,2147.0,1.131]
[1772642890162,1.92619367,2148.2,2146.9,1.1644697]
[1772642890568,1.92619367,2148.2,2147.0,1.133]
[1772642891093,1.92619367,2148.2,2146.9,1.1644697]
[1772642891393,1.92619367,2147.8,2146.8,1e-08]
[1772642891764,1.92619367,2147.6,2146.8,1e-08]
[1772642891969,1.92619367,2147.6,2146.8,1.16452009]
[1772642892367,1.92619367,2147.6,2146.8,1e-08]
[1772642892568,1.92619367,2147.6,2146.7,1e-08]
[1772642892875,1.92619367,2147.4,2146.7,1e-08]
[1772642893077,1.92619367,2147.2,2146.7,1e-08]
[1772642893392,1.92619367,2147.0,2146.7,1e-08]
[1772642893997,1.92619367,2146.8,2146.3,0.001]
[1772642894373,1.92619367,2146.6,2146.3,0.001]
[1772642894696,1.92619367,2146.4,2146.3,0.001]
[1772642895392,3.09093463,2146.4,2146.3,0.001]
[1772642895788,1.92619367,2146.3,2145.5,0.25909699]
[1772642895987,1.92619367,2146.3,2145.6,0.001]
[1772642896183,1.92619367,2146.3,2145.5,1e-08]
[1772642896901,1.92619367,2146.1,2145.5,1e-08]
[1772642897403,1.92619367,2145.8,2145.5,1e-08]
[1772642898702,4.65971879,2146.1,2145.5,1e-08]
[1772642898703,1.16495413,2146.1,2145.5,1e-08]
[1772642899081,3.1006961,2146.1,2145.5,1e-08]
[1772642899632,1.93574197,2146.6,2145.5,1e-08]
[1772642899918,1.16457818,2146.7,2145.5,0.34327674]
[1772642900083,1.93574197,2147.0,2145.5,0.34327674]
[1772642900084,6.59375824,2146.9,2145.5,0.34327674]
[1772642900415,1.93574197,2146.9,2145.6,1.109]
[1772642901093,1.93574197,2146.9,2145.6,1.111]
[1772642901319,1.16452394,2146.8,2145.7,1.16512093]
[1772642901516,1.93574197,2146.7,2145.7,1.16512093]
[1772642901697,1.93574197,2146.7,2145.5,1e-08]
[1772642901698,1.93574197,2146.7,2145.5,1.16518623]
[1772642902727,1.16452394,2146.8,2145.5,1.16518623]
[1772642902728,1.16452394,2146.8,2145.6,0.31966628]
[1772642902948,1.16452394,2146.8,2145.5,1.16518623]
[1772642902949,1.93574197,2146.7,2145.5,1.16518623]
[1772642903817,1.93574197,2146.5,2145.5,1e-08]
[1772642906024,2.98535074,2146.4,2145.5,1e-08]
[1772642906187,1.82060978,2146.3,2145.5,1e-08]
[1772642907747,1.82060978,2146.1,2145.5,1e-08]
[1772642907939,1.82060978,2145.9,2145.5,1e-08]
[1772642908942,1.16495806,2146.0,2145.7,0.001]
[1772642909327,2.98556784,2146.0,2145.7,0.001]
[1772642910146,1.82060978,2146.0,2145.7,0.001]
[1772642910356,1.16693101,2146.1,2145.7,0.001]
[1772642910357,0.002,2146.1,2145.7,0.001]
[1772642910572,1.16485035,2146.2,2145.7,0.001]
[1772642911543,1.166835,2146.3,2145.7,0.001]
[1772642911868,6.48115483,2146.6,2145.7,0.001]
[1772642911869,1.82260978,2146.6,2145.7,0.001]
[1772642912163,0.002,2146.6,2145.7,0.28523535]
[1772642912959,1.82160978,2146.5,2145.7,0.001]
[1772642913662,1.16685035,2146.4,2145.7,0.001]
[1772642914038,0.002,2146.6,2145.7,0.27197712]
[1772642914465,1.16436176,2147.1,2145.8,0.26440701]
[1772642914657,1.16685035,2146.9,2145.8,0.26440701]
[1772642915960,1.16452394,2146.8,2146.0,1.16495806]
[1772642916268,1.16452394,2146.8,2146.0,2.28695806]
[1772642916269,2.98613372,2146.8,2146.0,2.28695806]
[1772642916438,1.82160978,2146.8,2146.0,2.28695806]
[1772642916770,1.16685035,2146.7,2146.0,2.28695806]
[1772642916975,1.82160978,2146.6,2145.9,2.28797151]
[1772642917150,1.82160978,2146.5,2145.7,1.16608302]
[1772642917465,1.82160978,2146.5,2145.7,2.28908302]
[1772642918259,1.16474096,2146.4,2145.7,2.28908302]
[1772642919375,1.82160978,2146.5,2145.7,2.28908302]
[1772642919571,1.16685035,2146.4,2145.7,2.28908302]
[1772642920352,1.16685035,2146.4,2145.8,1.126]
[1772642920970,2.33159511,2146.4,2145.8,1.126]
[1772642921275,1.16685035,2146.4,2145.8,1.126]
[1772642922462,1.5184767,2147.0,2145.9,1.16501234]
[1772642922768,3.34008648,2147.0,2146.0,0.21396742]
[1772642922957,3.34008648,2147.0,2145.9,1.16501234]
[1772642922958,1.82160978,2146.9,2145.9,1.16601234]
[1772642923277,1.82160978,2146.7,2146.0,1.128]
[1772642923771,0.002,2146.8,2146.0,1.128]
[1772642924275,1.82360978,2146.8,2146.1,1.129]
[1772642924571,2.98618796,2146.7,2146.1,1.16486658]
[1772642924771,1.82160978,2146.6,2146.2,1.129]
[1772642925178,1.16654592,2146.8,2146.2,1.129]
[1772642925372,0.002,2146.8,2146.2,1.129]
[1772642926553,0.002,2146.8,2146.3,1.16479522]
[1772642927983,0.35603222,2147.0,2146.3,1.38194196]
[1772642928294,0.002,2147.3,2146.4,0.21714674]
[1772642928587,0.002,2147.3,2146.6,0.2070179]
[1772642930680,0.002,2147.3,2146.7,1.16457818]
[1772642930888,0.002,2147.3,2146.8,1.133]
[1772642933169,0.002,2147.3,2146.9,1.1644697]
[1772642933691,0.002,2147.7,2147.0,0.18648465]
[1772642933895,0.002,2147.9,2147.0,0.18648465]
[1772642934068,1.87588858,2148.4,2147.1,0.18648465]
[1772642934470,1.87588858,2148.4,2147.2,0.18080718]
[1772642934695,1.87588858,2148.4,2147.4,0.24634318]
[1772642935001,1.16555005,2148.6,2147.5,1.87452486]
[1772642935002,0.002,2148.6,2147.5,1.87452486]
[1772642935188,0.002,2148.6,2147.7,1.87452486]
[1772642935367,0.002,2148.6,2147.8,1.135]
[1772642935999,0.002,2148.6,2147.9,1.87452486]
[1772642936677,0.002,2148.6,2148.0,1.136]
[1772642937573,0.002,2148.6,2148.1,1.16381918]
[1772642938001,0.002,2148.6,2148.2,1.136]
[1772642938826,0.002,2148.8,2148.2,3.01052486]
[1772642939725,0.002,2148.8,2148.3,1.16371084]
[1772642941598,0.002,2149.1,2148.5,1.87452486]
[1772642941797,0.002,2149.4,2148.6,1.16354835]
[1772642941798,1.87788858,2149.4,2148.6,1.16354835]
[1772642942127,1.87788858,2149.4,2148.7,1.138]
[1772642943192,0.002,2149.4,2148.7,3.01252486]
[1772642944103,0.002,2149.4,2148.8,1.16344005]
[1772642944287,0.002,2149.4,2148.8,3.03796491]
[1772642944495,0.002,2149.4,2148.8,1.16344005]
[1772642944833,0.002,2149.4,2148.9,1.139]
[1772642945201,0.002,2149.4,2148.9,3.01352486]
[1772642946424,0.002,2149.4,2149.0,1.16333178]
[1772642948459,0.002,2149.4,2148.7,1.1634942]
[1772642948659,0.002,2149.4,2149.1,1.141]
[1772642949157,0.002,2149.8,2149.1,1.141]
[1772642949721,1.1649021,2149.8,2149.1,1.141]
[1772642949920,1.87588858,2149.7,2148.9,1.87452486]
[1772642950220,1.87588858,2149.7,2148.7,1.63851915]
[1772642950440,1.87588858,2149.5,2148.7,1.63851915]
[1772642951245,1.87588858,2149.5,2149.0,0.001]
[1772642951449,1.87788858,2149.2,2149.0,0.001]
[1772642951833,1.87788858,2149.2,2148.7,0.36927019]
[1772642952553,1.87588858,2149.0,2148.7,0.36927019]
[1772642953233,0.002,2149.2,2148.7,1.53373565]
[1772642953234,1.87788858,2149.2,2148.7,1.53373565]
[1772642953431,1.87788858,2149.2,2148.7,1.16446546]
[1772642954526,1.87588858,2149.1,2148.7,0.001]
[1772642955053,1.87588858,2149.0,2148.6,1.143]
[1772642955354,1.87588858,2149.0,2148.6,0.001]
[1772642955530,1.87588858,2149.0,2148.6,1.144]
[1772642956560,1.87588858,2149.0,2148.1,1.59937845]
[1772642956744,3.03923207,2149.0,2148.2,1.143]
[1772642956950,1.87588858,2149.0,2148.2,1.143]
[1772642958636,1.87588858,2149.0,2148.3,1.16371084]
[1772642958954,1.41678502,2149.1,2148.3,1.16471084]
[1772642959536,0.002,2149.2,2148.3,2.95468432]
[1772642959735,0.002,2149.2,2148.4,0.001]
[1772642960746,0.002,2149.2,2148.5,1.16360251]
[1772642962059,1.85379129,2149.7,2148.6,1.79197348]
[1772642962249,3.01674696,2149.7,2148.8,1.79097348]
[1772642962650,1.85179129,2149.6,2148.9,0.001]
[1772642962861,1.85179129,2149.5,2148.9,0.001]
[1772642963968,1.85179129,2149.5,2149.0,1.145]
[1772642964967,3.01485997,2149.5,2149.1,1.16327765]
[1772642965166,1.85179129,2149.5,2149.1,1.16327765]
[1772642965336,3.01485264,2149.5,2149.1,1.16327765]
[1772642965539,0.002,2149.3,2149.0,2.30829503]
[1772642965737,0.002,2149.3,2149.0,2.30929503]
[1772642966335,1.74568266,2149.3,2148.6,1.16354835]
[1772642966543,1.74568266,2149.3,2148.7,1.146]
[1772642966749,1.74568266,2149.3,2148.7,1.147]
[1772642967177,1.74568266,2149.3,2148.8,1.16344005]
[1772642967768,2.90887715,2149.3,2148.8,1.16344005]
[1772642967973,1.74568266,2149.3,2148.9,0.001]
[1772642968646,1.74368266,2149.2,2148.5,2.31055792]
[1772642969071,1.74368266,2149.2,2148.5,0.001]
[1772642969249,1.74368266,2149.0,2148.5,1.147]
[1772642969568,1.74368266,2149.0,2148.5,0.001]
[1772642969756,0.002,2149.3,2148.5,0.001]
[1772642969757,2.90886084,2149.3,2148.5,0.001]
[1772642970158,1.74368266,2149.2,2148.5,0.001]
[1772642972673,1.74368266,2149.0,2148.5,0.001]
[1772642974058,1.74368266,2149.0,2148.3,0.001]
[1772642974781,1.74368266,2148.8,2148.3,0.001]
[1772642976746,2.90690618,2149.2,2148.3,1.75702765]
[1772642977196,1.74368266,2149.1,2148.3,1.75702765]
[1772642979187,1.74368266,2149.0,2148.3,0.001]
[1772642979565,1.74368266,2149.0,2148.5,0.001]
[1772642979963,0.002,2148.9,2148.5,0.001]
[1772642982014,1.74568266,2148.9,2148.5,0.001]
[1772642982355,1.74568266,2148.9,2148.3,1.149]
[1772642983068,0.002,2148.9,2148.3,1.149]
[1772642983275,0.002,2148.9,2148.4,1.16365667]
[1772642984493,1.74368266,2148.8,2148.0,0.001]
[1772642984786,1.74368266,2148.8,2148.1,1.148]
[1772642985163,0.002,2148.9,2148.1,2.90402765]
[1772642985468,0.002,2148.9,2148.2,1.16376501]
[1772642985670,1.74568266,2148.9,2148.2,1.16376501]
[1772642986079,1.74568266,2148.9,2148.3,1.149]
[1772642986495,1.74568266,2148.9,2148.2,1.16376501]
[1772642986789,1.74568266,2148.9,2148.3,1.149]
[1772642986998,1.74568266,2148.9,2148.4,1.149]
[1772642987185,1.74568266,2148.9,2148.1,1.16377418]
[1772642987381,1.74568266,2148.9,2148.2,1.149]
[1772642988287,1.16344005,2148.8,2148.3,1.149]
[1772642989192,1.80878645,2148.8,2148.3,1.149]
[1772642989524,0.002,2149.1,2148.4,1.86098657]
[1772642989898,0.002,2149.4,2148.5,1.86098657]
[1772642990395,0.002,2149.4,2148.7,1.86098657]
[1772642990697,0.002,2149.4,2148.6,1.16354835]
[1772642990698,1.81078645,2149.3,2148.8,1.149]
[1772642991403,1.81078645,2149.3,2148.9,1.149]
[1772642991610,1.81078645,2149.3,2149.0,1.149]
[1772642991804,1.81078645,2149.3,2149.1,1.149]
[1772642992104,1.81078645,2149.3,2149.0,1.149]
[1772642992303,1.16322352,2149.2,2148.3,1.16371084]
[1772642992507,1.16322352,2149.2,2148.4,1.149]
[1772642992712,1.80878645,2149.1,2148.4,1.149]
[1772642993419,1.80878645,2149.1,2148.6,0.001]
[1772642993773,0.002,2148.9,2148.6,0.001]
[1772642994101,0.002,2148.9,2148.7,1.15]
[1772642995176,0.002,2148.9,2148.8,1.15]
[1772642996203,0.002,2148.9,2148.6,0.001]
[1772642996394,0.002,2148.9,2148.7,1.15]
[1772642996815,1.80878645,2148.8,2148.4,0.001]
[1772642997112,1.80878645,2148.8,2148.5,1.15]
[1772642997812,0.002,2148.9,2148.5,1.15]
[1772642998182,0.002,2148.9,2148.5,3.01098657]
[1772642998383,0.002,2148.9,2148.6,1.86098657]
[1772642998685,0.002,2148.9,2148.7,1.1634942]
[1772642999810,0.002,2149.1,2148.7,1.1634942]
[1772643000503,1.81078645,2149.1,2148.8,1.15]
[1772643000708,1.16333178,2149.0,2148.8,1.15]
[1772643001084,1.16333178,2149.0,2148.5,1.16359477]
[1772643001505,2.97410711,2149.1,2148.6,1.15]
[1772643001717,1.80878645,2149.0,2148.4,1.16461549]
[1772643001907,1.80878645,2149.0,2148.5,1.15]
[1772643002104,1.80878645,2149.0,2148.6,1.151]
[1772643002491,0.002,2149.4,2148.7,1.86098657]
[1772643002693,0.002,2149.4,2148.9,1.86098657]
[1772643004413,1.81078645,2149.4,2148.8,1.16344005]
[1772643004811,1.80878645,2149.2,2148.9,1.151]
[1772643004998,1.80878645,2149.2,2148.8,1.151]
[1772643005412,1.80878645,2149.2,2148.7,1.151]
[1772643005615,1.80878645,2149.2,2148.4,1.16465667]
[1772643005824,1.80878645,2149.2,2148.5,1.151]
[1772643007057,2.9720641,2149.1,2148.5,2.31460211]
[1772643007235,1.80878645,2149.0,2148.4,1.16461772]
[1772643007418,1.80878645,2149.0,2148.4,2.31661772]
[1772643007797,1.80878645,2149.0,2148.4,1.153]
[1772643008010,1.80878645,2149.0,2148.4,2.31665141]
[1772643008213,4.6526819,2149.3,2148.6,0.001]
[1772643008214,1.80878645,2149.3,2148.6,0.001]
[1772643008422,1.16515765,2149.4,2148.6,0.001]
[1772643008423,1.16515765,2149.4,2148.6,1.86198657]
[1772643008623,0.002,2149.2,2148.6,1.86198657]
[1772643009621,0.002,2149.2,2148.7,1.1634942]
[1772643010539,1.81078645,2149.2,2148.6,0.001]
[1772643011534,1.80878645,2148.8,2148.1,0.001]
[1772643011734,5.02240373,2148.7,2148.1,0.001]
[1772643011902,2.24308981,2148.6,2148.1,0.001]
[1772643012106,1.80878645,2148.6,2148.1,1.154]
[1772643012539,1.16336884,2149.0,2148.2,1.86098657]
[1772643012709,1.16331777,2149.1,2148.2,1.86098657]
[1772643012911,0.43402969,2149.0,2148.2,1.86098657]
[1772643013124,1.80878645,2149.0,2148.1,0.001]
[1772643013317,1.80878645,2149.0,2148.2,1.153]
[1772643013940,1.80878645,2148.8,2148.1,0.001]
[1772643014111,5.0175437,2148.7,2148.1,0.001]
[1772643014312,0.43364584,2148.6,2148.1,0.001]
[1772643014515,1.80878645,2148.6,2148.1,0.001]
[1772643015321,1.80878645,2148.4,2148.1,0.001]
[1772643015841,1.16381918,2148.1,2148.0,0.001]
[1772643016040,2.97260563,2148.1,2147.1,1.55438825]
[1772643016249,1.80878645,2148.0,2147.2,1.154]
[1772643016418,1.80878645,2148.0,2147.1,1.55438825]
[1772643016625,1.80878645,2148.0,2147.2,1.155]
[1772643017010,1.80878645,2148.0,2147.2,0.001]
[1772643017623,1.80878645,2147.8,2147.2,0.001]
[1772643018034,1.80878645,2147.6,2147.2,0.001]
[1772643018242,1.16403594,2147.7,2147.2,0.001]
[1772643018444,3.11634998,2147.7,2147.2,0.001]
[1772643018619,1.95231404,2147.6,2146.8,0.001]
[1772643020150,1.95231404,2147.4,2146.8,0.001]
[1772643020648,1.16414435,2147.5,2146.8,0.001]
[1772643020862,1.16414435,2147.5,2147.0,0.001]
[1772643021232,1.16412781,2147.6,2147.0,0.001]
[1772643021561,1.198,2148.1,2147.0,0.001]
[1772643021562,6.60704499,2148.4,2147.0,1.95007445]
[1772643022118,6.60704499,2148.4,2147.2,1.94907445]
[1772643022520,1.95231404,2148.3,2147.3,1.154]
[1772643023449,1.95231404,2148.3,2147.3,1.153]
[1772643023633,1.95231404,2148.3,2147.2,1.94907445]
[1772643023830,1.95231404,2148.3,2147.0,0.001]
[1772643024043,1.95231404,2148.1,2147.0,0.001]
[1772643024243,1.95231404,2148.1,2146.8,0.001]
[1772643024244,1.95231404,2147.7,2146.8,0.001]
[1772643026228,1.93247486,2147.5,2146.8,0.001]
[1772643027023,1.16409014,2147.6,2146.8,0.001]
[1772643027451,1.16409014,2147.6,2146.8,1.92734476]
[1772643027651,1.16392755,2147.9,2146.8,1.92734476]
[1772643028229,4.65551356,2148.0,2146.9,1.1644697]
[1772643028429,6.58798842,2148.0,2147.0,1.153]
[1772643028739,0.02329,2147.6,2147.0,1.153]
[1772643029763,0.02329,2147.6,2147.0,3.07934476]
[1772643030236,0.02329,2147.6,2147.1,2.31636123]
[1772643030433,1.18738988,2147.6,2147.1,1.16436123]
[1772643030639,3.11986474,2147.6,2146.8,2.31751551]
[1772643030824,3.11986474,2147.6,2146.8,1.16552109]
[1772643032344,1.18738087,2147.6,2147.0,1.16441546]
[1772643032537,0.02329,2147.6,2147.0,1.16441546]
[1772643032733,0.02329,2147.6,2147.0,3.09076022]
[1772643033633,0.02329,2147.6,2147.1,1.92634476]
[1772643034537,0.002,2147.4,2147.2,2.316307]
[1772643035230,0.002,2147.4,2147.3,1.152]
[1772643036171,0.02529,2147.6,2147.3,3.07834476]
[1772643036666,0.02529,2147.6,2147.4,1.16419856]
[1772643036871,0.02529,2147.6,2147.4,2.31619856]
[1772643037449,0.002,2147.9,2147.4,2.31619856]
[1772643037677,1.93247486,2148.8,2147.5,1.92634476]
[1772643037968,4.65312537,2149.1,2147.5,1.92634476]
[1772643037969,4.65339603,2149.0,2147.5,1.92634476]
[1772643038389,1.93247486,2148.9,2147.6,1.92634476]
[1772643038692,1.93247486,2148.7,2147.7,2.31600221]
[1772643038987,1.93247486,2148.7,2147.7,1.16400221]
[1772643039279,1.93247486,2148.7,2147.8,1.152]
[1772643039572,1.93247486,2148.7,2147.6,6.58248854]
[1772643039573,1.93247486,2148.5,2147.6,1.152]
[1772643040547,1.16365667,2148.4,2147.3,1.16425278]
[1772643040749,1.16365667,2148.4,2147.4,1.152]
[1772643042374,1.16365667,2148.4,2147.5,1.92634476]
[1772643042672,1.1634942,2148.7,2147.7,1.92634476]
[1772643043060,1.16348274,2148.8,2147.7,1.92634476]
[1772643043259,1.1634243,2148.9,2147.7,1.92634476]
[1772643043462,1.16337364,2149.0,2147.7,1.92634476]
[1772643043681,0.002,2149.2,2147.7,1.92634476]
[1772643043848,2.36576377,2149.1,2147.7,1.92634476]
[1772643044163,1.93247486,2148.9,2147.8,1.153]
[1772643044671,1.93247486,2148.7,2147.9,1.153]
[1772643044972,1.93247486,2148.7,2147.4,1.92634476]
[1772643045179,1.93247486,2148.4,2147.0,1.16540312]
[1772643045342,1.93247486,2148.2,2147.0,0.001]
[1772643045546,1.93247486,2148.0,2147.0,1.16541251]
[1772643045746,1.93247486,2148.4,2147.1,1.92634476]
[1772643045946,1.93247486,2148.2,2147.2,1.153]
[1772643046250,2.36510855,2148.1,2147.2,1.153]
[1772643046554,1.16392755,2147.9,2147.2,2.31729371]
[1772643046962,1.16392755,2147.9,2147.1,1.16435615]
[1772643047169,1.16392755,2147.9,2147.2,1.153]
[1772643047775,1.16392755,2147.9,2147.2,1.154]
[1772643048269,3.09838804,2148.0,2147.2,1.154]
[1772643048574,1.16587807,2148.0,2147.2,1.154]
[1772643048779,0.002,2148.0,2147.3,1.16425278]
[1772643049074,0.002,2148.0,2147.3,2.92116208]
[1772643049881,0.002,2148.0,2147.4,1.153]
[1772643050673,0.002,2148.0,2147.5,1.153]
[1772643051666,0.002,2148.0,2147.3,1.16425278]
[1772643051870,0.002,2148.0,2147.4,1.153]
[1772643052068,0.002,2148.0,2147.2,1.16528425]
[1772643052348,1.80099013,2148.0,2147.3,1.153]
[1772643052548,1.80099013,2148.0,2147.2,2.31828425]
[1772643052963,0.002,2148.0,2147.2,2.31828425]
[1772643053480,0.002,2148.0,2147.3,1.7569093]
[1772643054857,0.002,2148.0,2147.4,1.153]
[1772643055072,0.002,2148.0,2147.4,2.31717072]
[1772643055580,0.002,2148.0,2147.3,1.1642105]
[1772643055877,0.002,2148.0,2147.4,1.153]
[1772643056882,0.002,2148.2,2147.5,1.7569093]
[1772643057131,1e-08,2148.5,2147.8,1.7569093]
[1772643057958,1e-08,2148.5,2147.9,2.9099093]
[1772643058152,1e-08,2148.5,2147.9,1.154]
[1772643058365,1.79899014,2148.5,2147.9,1.154]
[1772643058552,1.79899014,2148.5,2147.7,1.16403594]
[1772643058766,1.79899014,2148.5,2147.7,1.154]
[1772643059954,1.16365667,2148.4,2147.8,1.16398174]
[1772643060159,1e-08,2148.5,2147.9,1.7569093]
[1772643061079,1e-08,2148.5,2147.8,1.16398174]
[1772643061276,1.16360473,2148.5,2147.7,1.16399893]
[1772643061588,2.96259486,2148.5,2147.6,2.92096071]
[1772643061791,2.96259486,2148.5,2147.8,1.154]
[1772643062093,0.002,2148.3,2147.8,2.31794576]
[1772643062591,0.002,2148.3,2147.6,1.7569093]
[1772643062761,1.80099013,2148.3,2147.5,2.31914171]
[1772643062963,1.80099013,2148.3,2147.5,1.155]
[1772643063466,2.23224377,2148.2,2147.5,0.001]
[1772643063667,1.79899013,2148.2,2147.5,0.001]
[1772643063990,1.79899013,2148.2,2147.5,1.16513938]
[1772643064198,1.16381918,2148.1,2147.5,1.16513938]
[1772643064612,1.16381918,2148.1,2147.5,0.001]
[1772643064769,1.16379294,2148.2,2147.5,1.7579093]
[1772643064973,1.79899013,2148.1,2147.5,0.001]
[1772643065567,1.16379294,2148.2,2147.3,0.001]
[1772643065568,1.79899013,2147.9,2147.3,0.001]
[1772643066189,1.16398174,2147.8,2147.3,0.001]
[1772643066770,1.16396343,2147.9,2147.3,0.001]
[1772643067269,2.96295356,2147.9,2147.3,0.001]
[1772643067885,0.4334886,2147.8,2147.3,0.001]
[1772643068073,2.96295356,2147.9,2147.3,0.001]
[1772643068273,1.16403594,2147.7,2147.3,0.001]
[1772643068775,1.16401599,2147.8,2147.3,0.001]